bitfinex/quotes_ETHUSD_20260228
["timestamp","ask_amount","ask_price","bid_price","bid_amount"]
[1772287921266,1.30890052,1910.0,1909.2,9.31462862]
[1772287921672,1.30890052,1910.0,1909.2,10.62407704]
[1772287921907,3.15788683,1910.1,1909.2,2.81462862]
[1772287922079,3.15788683,1910.1,1908.9,0.001]
[1772287922286,4.60451034,1910.1,1909.0,2.81462862]
[1772287922468,3.15788683,1910.1,1909.0,2.81462862]
[1772287923179,1.30896905,1909.9,1909.0,2.81462862]
[1772287923395,5.01654435,1909.8,1909.0,2.81462862]
[1772287923618,5.01654435,1909.8,1908.9,0.001]
[1772287923619,0.065536,1909.5,1908.9,0.001]
[1772287923772,6.86454435,1909.4,1908.9,0.001]
[1772287924199,9.36409,1909.3,1908.1,1.31017711]
[1772287924397,9.36409,1909.3,1908.0,7.19239161]
[1772287924604,5.01654435,1909.0,1907.6,7.1927128]
[1772287924903,5.01654435,1909.0,1907.5,5.24244902]
[1772287924904,5.01654435,1908.6,1907.2,7.19293855]
[1772287925088,5.01654435,1908.6,1907.2,7.19298248]
[1772287925288,5.01654435,1908.6,1907.2,5.88216552]
[1772287925289,1.3099979,1908.4,1907.2,5.88216552]
[1772287925472,5.769028,1908.3,1907.0,1.31091676]
[1772287925673,3.9855,1908.1,1906.8,13.09463083]
[1772287925904,5.185613,1908.3,1906.8,7.19326237]
[1772287926073,10.656669,1908.2,1906.8,7.19326237]
[1772287926274,10.661939,1908.1,1906.8,7.19326237]
[1772287926481,5.01654435,1908.2,1906.8,7.19326237]
[1772287927118,4.92674,1908.1,1906.8,7.19326237]
[1772287927424,1.31040989,1907.8,1906.8,5.88216552]
[1772287927582,3.15740989,1907.8,1906.5,1.31125703]
[1772287927782,3.15740989,1907.8,1906.4,7.19349283]
[1772287927783,3.57941453,1907.6,1906.4,7.19349283]
[1772287928103,3.64495053,1907.7,1906.2,5.88216552]
[1772287928278,3.57941453,1907.4,1906.2,5.88216552]
[1772287929389,3.64495053,1907.7,1906.2,5.88216552]
[1772287929589,3.57941453,1907.4,1906.2,7.19363734]
[1772287930807,4.88948108,1908.3,1906.6,6.02112345]
[1772287930996,3.36887,1908.2,1906.6,6.02112345]
[1772287931201,3.57941453,1908.0,1906.6,6.02112345]
[1772287932310,1.31034121,1907.9,1906.8,6.02112345]
[1772287934109,5.24136485,1908.2,1906.9,1.31202837]
[1772287934783,5.24136485,1908.2,1906.9,7.33315182]
[1772287935285,1.3101352,1908.2,1906.9,7.33315182]
[1772287936109,0.065536,1908.1,1906.9,7.33315182]
[1772287936304,3.57941453,1908.0,1906.9,7.33315182]
[1772287937184,3.57941453,1908.0,1906.9,6.02212345]
[1772287937585,3.57941453,1908.0,1906.9,0.001]
[1772287938109,5.02603804,1908.0,1906.9,0.001]
[1772287938317,0.065536,1907.6,1906.9,0.001]
[1772287938612,3.57941453,1907.4,1906.8,0.001]
[1772287939193,3.57941453,1907.4,1906.1,6.02112345]
[1772287939379,3.57941453,1907.4,1906.1,7.33269394]
[1772287939578,3.57941453,1907.4,1906.1,6.02112345]
[1772287939809,3.57941453,1907.1,1906.1,6.02112345]
[1772287939978,3.57941453,1907.1,1905.9,3.84738162]
[1772287940186,1.31095962,1907.0,1905.9,3.84738162]
[1772287940506,1.31095962,1907.0,1905.9,2.53567608]
[1772287940890,3.57941453,1906.8,1905.7,6.02112345]
[1772287941297,0.065536,1906.7,1905.7,6.02112345]
[1772287941610,1.843,1906.9,1905.7,7.33297302]
[1772287942324,6.68946199,1907.4,1905.7,7.33297302]
[1772287942325,3.15247858,1907.7,1906.3,6.02112345]
[1772287942621,3.15247858,1907.7,1906.4,6.02112345]
[1772287942789,3.15247858,1907.7,1906.5,6.02112345]
[1772287943109,6.73189311,1907.7,1906.5,6.02112345]
[1772287943690,3.15247858,1907.7,1906.5,6.02112345]
[1772287944416,3.15247858,1907.7,1906.7,6.02112345]
[1772287944617,3.15249799,1907.7,1906.7,6.02112345]
[1772287945117,1.31049799,1907.7,1906.7,6.02112345]
[1772287945818,4.88991252,1907.7,1906.7,6.02112345]
[1772287946626,4.88991252,1907.7,1906.7,7.3322317]
[1772287947129,1.31049799,1907.7,1906.7,7.3322317]
[1772287947843,4.88991252,1907.7,1906.7,6.02112345]
[1772287948144,0.065536,1907.6,1906.7,6.02112345]
[1772287948706,1.31061598,1907.5,1906.7,6.02112345]
[1772287950720,1.31061598,1907.5,1906.3,6.02112345]
[1772287950905,3.57941453,1907.4,1906.3,6.02112345]
[1772287951309,3.57941453,1907.1,1906.3,6.02112345]
[1772287951843,3.57941453,1907.1,1906.0,0.001]
[1772287952020,3.57941453,1907.1,1906.0,6.02212345]
[1772287952214,6.878,1907.0,1906.0,6.02212345]
[1772287952437,1.842,1906.9,1906.0,6.02212345]
[1772287952926,1.31109712,1906.8,1906.0,6.02212345]
[1772287953442,1.31109712,1906.8,1906.0,0.001]
[1772287953937,1.31109712,1906.8,1906.0,6.02212345]
[1772287955124,1.31109712,1906.8,1906.0,7.3337483]
[1772287955326,5.24355042,1907.3,1906.3,6.02112345]
[1772287956951,5.24355042,1907.3,1906.5,6.02112345]
[1772287957932,1.31075342,1907.3,1906.5,6.02112345]
[1772287959634,4.89016795,1907.3,1906.5,6.02112345]
[1772287960026,4.89016795,1907.3,1906.2,2.75]
[1772287960745,10.77063908,1907.3,1906.1,6.02112345]
[1772287961136,3.57941453,1907.0,1906.0,0.001]
[1772287961342,3.57941453,1907.0,1906.0,6.24164086]
[1772287961657,1.31089088,1907.1,1906.0,6.24164086]
[1772287962946,9.45988566,1907.0,1906.0,0.001]
[1772287963123,1.31089088,1907.1,1906.0,6.24164086]
[1772287963653,5.24356352,1907.2,1906.1,0.001]
[1772287963834,11.26599017,1907.2,1906.1,0.001]
[1772287964170,0.002,1907.0,1906.1,0.001]
[1772287964328,9.60384118,1907.0,1906.1,0.001]
[1772287965146,3.58141453,1907.0,1906.1,0.001]
[1772287965346,3.58141453,1907.0,1906.1,6.41877447]
[1772287965347,0.002,1907.0,1906.1,6.41877447]
[1772287965631,1.31295962,1907.0,1906.1,6.41877447]
[1772287966726,10.9148008,1907.0,1906.1,0.001]
[1772287967352,3.58248612,1906.8,1906.1,0.001]
[1772287967860,1.31116588,1906.7,1906.1,0.001]
[1772287968036,1.31116588,1906.7,1906.0,0.001]
[1772287968037,3.58248612,1906.6,1906.0,0.001]
[1772287968435,1.31116588,1906.7,1906.0,0.001]
[1772287969662,1.31144101,1906.3,1906.0,0.001]
[1772287970164,1.31144101,1906.3,1905.4,6.41777447]
[1772287970960,3.58248612,1906.2,1905.4,6.41777447]
[1772287971158,1.31144101,1906.3,1905.4,6.41777447]
[1772287971351,3.58248612,1906.2,1905.4,6.41777447]
[1772287971672,5.24466355,1906.8,1905.6,3.58248612]
[1772287971963,1.31116588,1906.7,1905.9,6.41777447]
[1772287972263,5.24466355,1906.9,1905.9,6.41777447]
[1772287972264,5.24427352,1906.9,1905.9,6.41777447]
[1772287973634,11.26670017,1906.9,1905.9,6.41777447]
[1772287973833,5.24427352,1906.9,1905.9,6.41777447]
[1772287975176,6.02242665,1906.8,1905.6,6.41777447]
[1772287975659,6.02242665,1906.7,1905.6,6.41777447]
[1772287975865,6.02242665,1906.7,1905.6,7.72969213]
[1772287975866,7.3336613,1906.6,1905.6,7.72969213]
[1772287976171,1.31123465,1906.6,1905.6,6.41777447]
[1772287977367,3.15623465,1906.6,1905.6,6.41777447]
[1772287977662,6.02242665,1906.4,1905.3,9.16777447]
[1772287977959,7.33386766,1906.3,1905.3,9.16777447]
[1772287978364,7.33386766,1906.3,1905.0,6.41777447]
[1772287978559,9.60339975,1906.2,1905.0,6.41777447]
[1772287978748,1.845,1906.1,1905.0,6.41777447]
[1772287979250,7.86742665,1906.1,1905.0,6.41777447]
[1772287979836,1.31164742,1906.0,1905.0,6.41777447]
[1772287980438,6.02242665,1906.3,1905.0,7.73010206]
[1772287980664,11.26874111,1906.2,1905.0,7.73010206]
[1772287982066,11.26874111,1906.2,1905.0,6.41777447]
[1772287982275,3.5809731,1905.9,1904.8,1.908]
[1772287982439,11.44939975,1905.9,1904.7,10.44487894]
[1772287982768,11.44939975,1905.9,1905.1,0.001]
[1772287983367,6.02242665,1905.7,1905.1,0.001]
[1772287983567,6.02242665,1905.5,1905.0,0.001]
[1772287983754,1.847,1905.4,1905.0,0.001]
[1772287983940,1.31212932,1905.3,1905.0,0.001]
[1772287984140,1.31212932,1905.3,1904.5,0.001]
[1772287984972,6.02242665,1905.2,1904.5,0.001]
[1772287985190,4.89310242,1905.3,1904.2,0.001]
[1772287985191,9.60339975,1905.0,1904.2,0.001]
[1772287985357,1.847,1904.9,1904.2,0.001]
[1772287985684,7.86942665,1904.9,1904.2,0.001]
[1772287986182,6.02242665,1904.6,1903.4,7.73120582]
[1772287986383,6.02242665,1904.6,1903.4,6.41777447]
[1772287986582,3.5809731,1904.4,1903.4,6.41777447]
[1772287986801,3.5809731,1904.4,1903.3,1.27544458]
[1772287986802,11.45139975,1904.4,1903.3,1.27544458]
[1772287986955,6.02242665,1904.3,1903.1,7.73140872]
[1772287988097,1.31281835,1904.3,1903.1,7.73140872]
[1772287989585,11.27283212,1904.7,1903.1,7.73140872]
[1772287989753,6.02242665,1904.6,1903.1,7.73140872]
[1772287989956,7.33510714,1904.5,1903.1,7.73140872]
[1772287990575,6.34175002,1904.5,1903.1,7.73140872]
[1772287990781,6.25409187,1904.4,1903.1,7.73140872]
[1772287992289,1.31281835,1904.3,1903.1,7.73140872]
[1772287993088,7.56691022,1904.3,1903.1,6.41777447]
[1772287993393,5.033147,1904.1,1902.7,7.43151288]
[1772287993597,11.28723887,1904.1,1902.7,7.43151288]
[1772287993801,5.033147,1903.0,1902.4,0.001]
[1772287994172,1.31371518,1903.0,1902.4,0.001]
[1772287994473,5.033147,1902.5,1902.1,0.001]
[1772287994660,5.033147,1902.8,1902.1,0.001]
[1772287995090,7.56780705,1903.0,1901.6,1.31565008]
[1772287995091,5.033147,1902.4,1901.6,1.31565008]
[1772287995295,1.849,1902.5,1901.6,0.001]
[1772287995796,1.849,1902.5,1901.6,1.31567171]
[1772287996011,1.849,1902.5,1901.6,7.43326957]
[1772287996465,3.16292232,1902.7,1901.6,7.43326957]
[1772287996668,9.41701419,1902.7,1901.6,7.43326957]
[1772287996886,6.25409187,1902.6,1901.6,1.31567676]
[1772287997085,6.25409187,1902.6,1901.6,0.001]
[1772287997286,6.25409187,1902.4,1901.6,0.001]
[1772287998075,6.25409187,1902.3,1901.6,0.001]
[1772287998390,7.56835956,1902.2,1901.6,0.001]
[1772287998966,6.25409187,1902.0,1900.7,8.26765237]
[1772287999188,6.25409187,1902.0,1900.7,9.58290861]
[1772287999189,6.25409187,1901.9,1900.7,9.58290861]
[1772287999389,2.61229353,1901.9,1900.6,1.31532756]
[1772287999568,6.25409187,1901.8,1900.6,1.31532756]
[1772287999888,6.25409187,1901.8,1900.6,7.43292542]
[1772288000090,4.46229353,1901.9,1900.6,7.43292542]
[1772288000601,1.31426769,1902.2,1900.6,7.43292542]
[1772288001182,7.56835956,1902.2,1900.6,7.43292542]
[1772288001700,1.31426769,1902.2,1900.6,7.43292542]
[1772288002107,1.31426769,1902.2,1900.8,6.11759786]
[1772288002404,1.31426769,1902.2,1900.9,6.11759786]
[1772288002594,1.31426769,1902.2,1901.0,1.31509731]
[1772288002784,1.31426769,1902.2,1901.0,7.43269517]
[1772288003108,7.56780705,1903.0,1901.1,6.3044541]
[1772288003276,6.25409187,1902.9,1901.1,6.11759786]
[1772288003481,6.25409187,1902.9,1901.2,6.11759786]
[1772288003698,6.25409187,1902.7,1901.2,6.11759786]
[1772288003901,6.25409187,1902.9,1901.2,6.11759786]
[1772288004202,6.25409187,1902.7,1901.2,6.11759786]
[1772288004390,6.25409187,1902.5,1901.2,6.11759786]
[1772288004584,1.31412952,1902.4,1901.2,7.43252019]
[1772288004906,7.56822139,1902.4,1901.2,7.43252019]
[1772288005098,7.56822139,1902.4,1901.2,1.31492233]
[1772288007786,7.56822139,1902.4,1901.2,7.43252019]
[1772288008382,1.31412952,1902.4,1901.2,7.43252019]
[1772288009800,1.31412952,1902.4,1901.3,6.11859786]
[1772288010113,1.31612952,1902.4,1901.3,6.11859786]
[1772288010527,7.57022139,1902.4,1901.3,6.11859786]
[1772288010728,7.57022139,1902.4,1901.3,0.001]
[1772288011409,7.57022139,1902.4,1901.3,6.11859786]
[1772288011708,7.57022139,1902.4,1901.3,0.001]
[1772288012519,7.57022139,1902.4,1900.6,7.43292811]
[1772288012520,0.065536,1901.8,1900.6,7.43292811]
[1772288012678,8.10609187,1901.7,1900.6,7.43292811]
[1772288012878,8.10609187,1901.7,1900.6,7.43296708]
[1772288013108,6.25409187,1901.6,1900.6,1.31536922]
[1772288013313,7.56884338,1901.5,1900.3,7.43313743]
[1772288013894,9.42084338,1901.5,1900.3,7.43313743]
[1772288014094,3.16675151,1901.5,1900.3,7.43313743]
[1772288014919,6.25409187,1901.4,1900.3,7.43313743]
[1772288015406,1.31488981,1901.3,1900.3,7.43313743]
[1772288015917,11.29843684,1901.1,1900.1,1.31572022]
[1772288016412,1.853,1901.0,1900.1,1.31572022]
[1772288017118,1.31488981,1901.3,1899.6,7.43359512]
[1772288017119,1.853,1900.9,1899.6,7.43359512]
[1772288017286,1.31530488,1900.7,1899.6,7.43359512]
[1772288017808,3.16828423,1900.8,1899.6,7.43359512]
[1772288018011,5.26057531,1901.0,1899.9,6.11759786]
[1772288018216,1.853,1901.0,1899.9,6.11759786]
[1772288018614,1.31502814,1901.1,1900.1,6.11759786]
[1772288018789,1.31502814,1901.1,1900.3,6.11759786]
[1772288019391,1.31502814,1901.1,1900.4,1.31551252]
[1772288019890,1.31502814,1901.1,1900.3,3.21756992]
[1772288020213,1.31502814,1901.1,1900.2,1.31562486]
[1772288020430,5.26011256,1901.5,1900.2,1.31562486]
[1772288020431,6.25409187,1901.7,1900.3,6.23448385]
[1772288020586,1.31468237,1901.6,1900.3,6.23448385]
[1772288020782,1.31468237,1901.6,1900.5,6.23448385]
[1772288020986,1.31468237,1901.6,1900.7,6.23448385]
[1772288021420,1.31468237,1901.6,1900.7,7.54972341]
[1772288021834,3.16766789,1901.7,1900.7,7.54972341]
[1772288022184,3.16766789,1901.7,1900.1,2.77479729]
[1772288022185,5.04434497,1901.2,1900.3,1.31552636]
[1772288022391,1.852,1901.2,1900.3,7.55001021]
[1772288022705,1.852,1901.3,1900.3,7.55001021]
[1772288023603,3.16682065,1901.4,1900.3,7.55001021]
[1772288023807,3.16682065,1901.4,1900.5,6.0888785]
[1772288024189,11.35642124,1901.1,1900.4,0.001]
[1772288024389,6.31207627,1901.0,1900.4,0.001]
[1772288024917,1.851,1900.9,1900.4,0.001]
[1772288025113,1.851,1900.9,1900.1,0.001]
[1772288025114,5.04434497,1900.8,1900.1,0.001]
[1772288025611,1.31537409,1900.6,1900.1,0.001]
[1772288026615,5.26012338,1901.1,1900.1,6.0898785]
[1772288027216,5.04434497,1900.9,1900.1,0.001]
[1772288027416,1.853,1900.8,1900.1,0.001]
[1772288027795,5.04434497,1900.9,1900.1,0.001]
[1772288027999,1.854,1900.8,1900.1,0.001]
[1772288029820,1.31530488,1900.7,1900.1,0.001]
[1772288031597,1.31530488,1900.7,1899.9,7.40473689]
[1772288031826,7.11521955,1900.8,1899.9,7.40473689]
[1772288032603,5.26121955,1900.8,1899.9,7.40473689]
[1772288032804,7.11521955,1900.8,1899.9,7.40473689]
[1772288033130,7.11521955,1900.8,1899.5,5.26343491]
[1772288033131,8.16507627,1900.7,1899.6,7.40492219]
[1772288033798,8.16507627,1900.7,1899.5,1.31608282]
[1772288033799,5.04434497,1900.3,1899.5,1.31608282]
[1772288034099,1.31565098,1900.2,1899.4,1.46551644]
[1772288034316,1.31565098,1900.2,1899.4,1.46551496]
[1772288034510,1.31565098,1900.2,1899.4,1.46550415]
[1772288035229,3.16962968,1900.3,1899.4,7.55438265]
[1772288035430,3.16959681,1900.3,1899.4,7.55438265]
[1772288035927,6.31207627,1900.5,1899.4,7.55438265]
[1772288035928,1.31548799,1900.5,1899.4,7.55438265]
[1772288036132,6.31207627,1900.4,1899.4,7.55438265]
[1772288036618,6.31207627,1900.4,1899.5,0.001]
[1772288036927,6.67014322,1900.4,1899.5,0.001]
[1772288037843,0.35806695,1900.4,1899.5,6.0898785]
[1772288038006,1.67360063,1900.4,1899.6,7.40494504]
[1772288038530,6.7179456,1900.4,1899.5,1.31708309]
[1772288038732,1.67360063,1900.4,1899.5,1.31708309]
[1772288038933,1.853,1900.3,1899.5,1.31708309]
[1772288039707,5.04434497,1900.2,1899.5,1.31713187]
[1772288040201,0.35806695,1900.4,1899.7,6.0888785]
[1772288040402,0.002,1900.6,1899.9,6.0888785]
[1772288040811,0.002,1900.6,1900.0,6.0888785]
[1772288041907,0.002,1900.6,1900.1,1.897]
[1772288042130,0.002,1900.6,1900.1,7.9858785]
[1772288042326,0.002,1900.6,1900.2,1.31565098]
[1772288042735,0.35806814,1901.0,1900.3,6.0888785]
[1772288043030,0.35806814,1901.0,1900.2,1.31565098]
[1772288043031,1.67318431,1901.0,1900.2,1.31565098]
[1772288043232,7.98526058,1901.0,1900.2,1.31565098]
[1772288043739,3.52318431,1901.0,1900.2,1.31565098]
[1772288044240,1.67318431,1901.0,1900.1,5.2626931]
[1772288044445,0.35806814,1901.0,1900.2,6.0888785]
[1772288044604,0.35806814,1901.0,1900.3,6.0888785]
[1772288045316,0.35806814,1901.0,1900.4,7.9858785]
[1772288045532,3.16377965,1901.5,1900.5,6.0888785]
[1772288046244,6.31207627,1901.4,1900.5,7.40426689]
[1772288046445,6.31207627,1901.4,1900.5,1.31538839]
[1772288047114,1.31477965,1901.5,1900.5,7.40426689]
[1772288047916,5.04434497,1901.4,1900.5,1.31538839]
[1772288048118,6.31207627,1901.1,1900.0,7.40459872]
[1772288048319,1.849,1901.2,1900.3,7.40446025]
[1772288048857,1.849,1901.2,1900.2,7.159327]
[1772288048858,6.31207627,1901.1,1900.2,1.31562135]
[1772288049512,3.16288981,1901.3,1900.5,0.001]
[1772288049704,3.60384358,1901.2,1900.5,0.001]
[1772288049905,0.002,1900.9,1900.5,0.001]
[1772288050423,0.002,1901.0,1900.5,1.3164433]
[1772288050622,0.002,1901.0,1900.5,7.56939796]
[1772288055942,0.002,1901.2,1900.6,6.25295466]
[1772288056818,0.002,1901.2,1900.8,6.25295466]
[1772288057033,0.002,1901.2,1901.0,6.25295466]
[1772288057412,5.96022218,1901.7,1900.8,1.906]
[1772288057707,1.31482065,1901.4,1900.7,1.31530488]
[1772288058211,6.02575818,1902.1,1900.7,7.56825954]
[1772288058415,6.02575818,1902.1,1901.0,6.25295466]
[1772288058416,1.67176825,1901.9,1901.0,6.25295466]
[1772288058615,0.35729157,1901.9,1901.0,8.15895466]
[1772288058811,1.67178451,1901.9,1901.0,8.15895466]
[1772288059713,1.31468237,1901.6,1900.9,1.3151665]
[1772288059916,7.27488805,1901.7,1900.9,1.3151665]
[1772288062575,1.31466587,1901.7,1900.9,1.3151665]
[1772288062755,7.09732966,1901.8,1900.9,11.17196474]
[1772288062756,1.31457323,1901.8,1900.9,11.17196474]
[1772288062954,1.67182084,1901.9,1901.0,6.25295466]
[1772288063342,5.96022218,1901.8,1900.9,1.3151665]
[1772288063553,5.96022218,1901.8,1900.8,5.260666]
[1772288063554,5.96022218,1901.4,1900.7,0.001]
[1772288063757,1.31502814,1901.1,1900.7,0.001]
[1772288066394,9.11622975,1901.2,1900.7,0.001]
[1772288066581,1.31500757,1901.2,1900.7,0.001]
[1772288066770,10.88076559,1901.6,1900.7,8.15495466]
[1772288067076,10.88076559,1901.6,1900.7,1.902]
[1772288067486,7.27692201,1901.6,1900.7,1.902]
[1772288067649,0.002,1901.6,1900.8,6.25295466]
[1772288067984,4.92054134,1901.6,1900.9,1.3151665]
[1772288069583,7.27691994,1901.6,1900.9,1.3151665]
[1772288069879,7.27691994,1901.6,1900.7,0.001]
[1772288069880,5.25912593,1901.5,1900.7,0.001]
[1772288070079,13.06334811,1901.5,1900.7,0.001]
[1772288071180,16.66719169,1901.5,1900.7,0.001]
[1772288073856,12.72281727,1901.5,1900.7,0.001]
[1772288074056,1.31475151,1901.5,1900.7,0.001]
[1772288074690,1.31475151,1901.5,1900.7,6.25395466]
[1772288076858,0.002,1901.6,1900.8,1.31623569]
[1772288077061,0.002,1901.4,1900.8,1.31623569]
[1772288078990,0.002,1901.4,1900.8,7.56919035]
[1772288082213,6.01784407,1901.3,1900.8,1.3162248]
[1772288082365,0.002,1901.4,1900.8,1.3162248]
[1772288083585,1.31682065,1901.4,1900.8,0.001]
[1772288083787,7.51755421,1901.4,1900.8,0.001]
[1772288083988,9.80457714,1901.1,1900.7,0.001]
[1772288084686,6.20073356,1901.1,1900.7,0.001]
[1772288085967,1.31509731,1901.0,1900.7,0.001]
[1772288087100,1.31509731,1901.0,1900.7,3.94861564]
[1772288087489,3.16000929,1901.2,1900.7,3.94861564]
[1772288088295,3.16000929,1901.2,1900.7,3.88861564]
[1772288088478,9.36074285,1901.2,1900.7,3.88861564]
[1772288089565,7.51574285,1901.2,1900.7,3.88861564]
[1772288089767,1.849,1901.1,1900.7,3.88861564]
[1772288090066,1.849,1901.1,1900.8,0.001]
[1772288090261,1.31494029,1901.3,1900.8,0.001]
[1772288090493,3.16394029,1901.3,1900.8,0.001]
[1772288091496,9.36467385,1901.3,1900.8,0.001]
[1772288091699,3.60384358,1901.2,1900.8,0.001]
[1772288092100,9.36467385,1901.3,1900.8,0.001]
[1772288092487,7.51567385,1901.3,1900.8,0.001]
[1772288092666,1.853,1901.2,1900.8,0.001]
[1772288093387,1.854,1901.2,1900.8,0.001]
[1772288093708,8.05473356,1901.2,1900.8,0.001]
[1772288094671,1.31502814,1901.1,1900.8,0.001]
[1772288098033,1.31489921,1901.3,1900.8,6.07633968]
[1772288098210,3.17589921,1901.3,1900.8,6.07633968]
[1772288098528,3.17589921,1901.3,1900.8,0.001]
[1772288100204,9.80457714,1901.0,1900.7,7.36351736]
[1772288100403,6.20073356,1900.8,1900.5,0.001]
[1772288100829,1.863,1900.8,1900.5,0.001]
[1772288101127,3.1781665,1900.9,1900.5,0.001]
[1772288101302,9.37890006,1900.9,1900.5,0.001]
[1772288101625,1.3151665,1900.9,1900.5,0.001]
[1772288101825,1.864,1900.8,1900.5,0.001]
[1772288102412,6.20073356,1900.7,1900.5,0.001]
[1772288102601,9.80457714,1900.6,1900.4,0.001]
[1772288102808,1.866,1900.5,1900.4,0.001]
[1772288103209,3.1814433,1900.5,1900.2,0.001]
[1772288103443,8.86459208,1900.9,1900.2,0.001]
[1772288103649,6.20073356,1900.7,1899.8,6.07533968]
[1772288103803,1.867,1900.6,1899.8,7.39126009]
[1772288104238,1.867,1900.6,1899.5,0.001]
[1772288104239,6.20073356,1900.4,1899.5,1.31708261]
[1772288104532,1.867,1900.3,1899.5,7.39246331]
[1772288105241,1.31565098,1900.2,1899.5,7.39246331]
[1772288105447,7.51638454,1900.2,1899.5,7.39246331]
[1772288105643,1.31565098,1900.2,1899.5,7.39246331]
[1772288105956,6.20073356,1900.1,1899.5,1.31713223]
[1772288106249,8.06673356,1900.1,1899.5,1.31713223]
[1772288106485,6.20073356,1900.0,1899.5,0.001]
[1772288106914,6.20073356,1900.0,1899.5,1.3171288]
[1772288107114,1.867,1899.9,1899.5,1.3171288]
[1772288107314,3.18286843,1899.9,1899.5,0.001]
[1772288107716,9.38360199,1899.9,1899.5,0.001]
[1772288107924,1.867,1899.9,1899.5,0.001]
[1772288108145,1.867,1900.1,1899.5,6.07633968]
[1772288108727,8.06773356,1900.1,1899.5,0.001]
[1772288109517,6.20273356,1901.0,1899.8,6.07533968]
[1772288109743,0.002,1901.0,1900.3,6.07533968]
[1772288109940,0.002,1901.0,1900.6,6.07533968]
[1772288110141,0.002,1901.0,1900.5,1.894]
[1772288110341,1.31712298,1901.0,1900.5,1.894]
[1772288110651,9.79543553,1900.9,1900.2,1.894]
[1772288110850,1.867,1900.8,1900.2,1.894]
[1772288111019,6.19159195,1900.9,1900.2,1.894]
[1772288111219,1.31712298,1901.0,1899.7,1.31599726]
[1772288111220,1.31537409,1900.6,1899.7,1.31599726]
[1772288111419,1.31537409,1900.6,1899.7,3.20999726]
[1772288111614,16.50084053,1900.7,1899.7,3.20999726]
[1772288111615,12.55470383,1900.7,1899.7,3.20999726]
[1772288112149,12.55470383,1900.7,1899.7,9.45767841]
[1772288112318,5.26079149,1900.9,1899.8,6.24768115]
[1772288112514,1.868,1900.8,1899.8,6.24768115]
[1772288113343,1.31530488,1900.7,1899.9,1.31585872]
[1772288113517,7.50689683,1900.7,1899.9,1.31585872]
[1772288113719,1.31530488,1900.7,1899.9,1.31585872]
[1772288113940,3.18330488,1900.7,1899.9,7.56353987]
[1772288114329,1.868,1900.7,1899.9,7.56353987]
[1772288114525,1.868,1900.7,1899.9,7.56453987]
[1772288114732,1.87,1900.7,1899.9,7.56453987]
[1772288115321,1.31537409,1900.6,1899.9,7.56453987]
[1772288116153,1.87,1900.7,1899.9,7.56453987]
[1772288116453,3.18531022,1900.7,1899.9,7.56453987]
[1772288116669,1.31731022,1900.7,1899.9,7.56453987]
[1772288116896,11.23934417,1900.4,1899.9,0.001]
[1772288117045,6.19159195,1900.0,1899.6,0.001]
[1772288117241,8.05759195,1900.0,1899.4,0.1503159]
[1772288117447,1.31585872,1899.9,1899.4,0.1503159]
[1772288117685,1.31578947,1900.0,1899.4,1.46650977]
[1772288117968,5.26272415,1900.2,1899.4,1.46650977]
[1772288118184,3.18265098,1900.2,1899.4,1.46650977]
[1772288118338,9.37424293,1900.2,1899.4,1.46650977]
[1772288118543,6.19159195,1900.1,1899.4,0.1503159]
[1772288119486,1.31578947,1900.0,1899.4,0.1503159]
[1772288119643,6.19159195,1899.8,1899.4,0.1503159]
[1772288119843,8.05959195,1899.8,1899.4,0.1503159]
[1772288120675,1.869,1899.9,1899.4,1.46651023]
[1772288120862,1.869,1899.9,1899.4,0.1503159]
[1772288121571,1.31592799,1899.8,1899.4,0.1503159]
[1772288121743,7.50751994,1899.8,1899.4,0.1503159]
[1772288123178,3.18992799,1899.8,1899.4,2.3921405]
[1772288124045,1.31592799,1899.8,1899.4,2.3921405]
[1772288124243,6.19159195,1899.6,1898.8,0.28613795]
[1772288124473,6.19159195,1899.6,1898.8,1.60275682]
[1772288124474,5.04775222,1899.4,1898.8,1.60275682]
[1772288124663,1.878,1899.4,1898.8,1.60275682]
[1772288125164,1.878,1899.4,1898.8,1.60274459]
[1772288125355,1.878,1899.4,1898.8,0.28613795]
[1772288125555,6.19159195,1899.3,1898.8,0.28613795]
[1772288126074,1.31634372,1899.2,1898.8,0.28613795]
[1772288126952,1.31619466,1899.5,1898.8,1.60274831]
[1772288127152,7.50778661,1899.5,1898.8,1.60275121]
[1772288127568,7.50778661,1899.5,1898.8,0.28613795]
[1772288127781,7.50778661,1899.5,1898.8,1.60275262]
[1772288127963,7.50778661,1899.5,1898.8,0.28613795]
[1772288128287,6.19159195,1899.2,1898.3,1.31692543]
[1772288128487,6.19159195,1899.2,1898.3,7.56460658]
[1772288128488,1.882,1899.1,1898.3,7.56460658]
[1772288128851,1.882,1899.1,1898.9,0.001]
[1772288129481,18.21778661,1899.5,1898.9,0.001]
[1772288129670,12.02619466,1899.5,1898.9,6.24868115]
[1772288129872,12.02619466,1899.5,1898.9,0.001]
[1772288130074,10.71,1899.5,1898.9,0.001]
[1772288130257,10.71,1899.5,1898.9,6.24868115]
[1772288130790,4.21,1899.6,1899.0,4.90034348]
[1772288130952,7.50724519,1900.2,1899.0,4.90034348]
[1772288131289,6.19159195,1899.8,1898.9,0.001]
[1772288131467,6.19159195,1899.6,1898.9,0.001]
[1772288132474,6.19159195,1899.4,1898.9,0.001]
[1772288132782,6.19159195,1899.2,1898.6,0.001]
[1772288133188,6.36382501,1899.6,1898.6,1.31775393]
[1772288133189,6.19159195,1899.5,1898.6,1.31775393]
[1772288133692,1.31606661,1899.6,1898.7,4.90034348]
[1772288133889,1.31606661,1899.6,1898.8,1.885]
[1772288134094,7.50755804,1899.8,1898.8,6.78534348]
[1772288134479,7.50755804,1899.8,1898.6,1.31775393]
[1772288134480,6.19159195,1899.5,1898.6,1.31775393]
[1772288134689,6.19159195,1899.5,1898.6,0.001]
[1772288135082,6.93175222,1899.6,1897.7,2.4372023]
[1772288135083,5.04775222,1898.9,1897.7,2.4372023]
[1772288135394,6.19159195,1898.6,1897.8,1.884]
[1772288135602,8.07559195,1898.9,1897.9,1.884]
[1772288135906,6.19159195,1898.8,1897.9,1.884]
[1772288136063,6.19159195,1898.8,1897.8,6.24768115]
[1772288136266,6.19159195,1898.8,1897.9,1.884]
[1772288136462,7.50828231,1898.7,1897.9,3.20121422]
[1772288137100,8.07559195,1898.6,1897.6,5.26959459]
[1772288137282,6.19159195,1898.5,1897.6,1.31745362]